[Event "USA Championship Women 2022"]
[Site "Saint Louis"]
[Date "2022.10.05"]
[Round "1.5"]
[White "Eswaran, Ashritha"]
[Black "Lee, Alice"]
[Result "0-1"]
[ECO "A11"]
[WhiteElo "2365"]
[BlackElo "2263"]
[Annotator "TA"]
[PlyCount "74"]
[EventDate "2022.09.05"]
[EventType "tourn"]
[EventCountry "USA"]
[SourceTitle "playchess.com"]
[Source "ChessBase"]
[SourceQuality "1"]
[TimeControl "40/5400+30:1800+30"]

{[%evp 13,74,6,13,-21,16,11,93,81,83,62,70,60,43,45,184,0,6,-109,-41,-59,-63,-57,-52,-59,-42,-52,-29,-63,-43,-131,-126,-126,-135,-290,-275,-488,-516,-486,-512,-1813,-1800,-1667,-1625,-1950,-1789,-1976,-1932,-3011,-2631,-29983,-29984,-29984,-29985,-29985,-29986,-29999,-29987,-29992,-29990,-29991,-29992,-29992,-2083]} 1. c4 {[%emt 0:00:06]} c6 {[%emt 0:00:08]} 2. Nf3 {[%emt 0:00:24]} d5 {[%emt 0:00:15]} 3. e3 {[%emt 0:00:37]} Nf6 {[%emt 0:00:26]} 4. Nc3 {[%emt 0:00:38]} e6 {[%emt 0:00:15]} 5. b3 {[%emt 0:00:20]} Nbd7 {[%emt 0:00:38]} 6. Bb2 {[%emt 0:00:25]} Bd6 {[%emt 0:00:58]} 7. Qc2 {[%emt 0:00:40]} O-O {[%emt 0:01:11]} 8. Rg1 {[%emt 0:01:03] A11: English Opening: 1...c6.} Re8 {[%emt 0:11:00]} 9. g4 {[%emt 0:01:37]} Nf8 {[%emt 0:09:23]} (9... g6 $11) 10. g5 $16 {[%emt 0:05:02] White is better.} N6d7 {[%emt 0:00:29]} 11. h4 {[%emt 0:01:50][%cal Bh2h4,Bh4h5][%mdl 32] [#]} a6 $146 {[%emt 0:12:42]} ({Predecessor:} 11... f5 12. h5 a6 13. cxd5 cxd5 14. Nd4 Nc5 15. f4 b5 16. h6 Ng6 17. hxg7 b4 18. Nxf5 bxc3 {1-0 (45) Castrillon Gomez,M (2212)-Salcedo,J (2020) Cali 2021}) 12. h5 {[%emt 0:06:36]} b5 {[%emt 0:03:23]} 13. Bd3 {[%emt 0:10:24][%cal Od3h7] And now Bxh7+! would win.} Bb7 {[%emt 0:09:43] [#]} (13... g6 $14) 14. g6 $2 {[%emt 0:08:01]} (14. Bxh7+ $1 $18 {[%mdl 512]} Nxh7 15. g6 fxg6 16. Nxb5 $1 (16. Qxg6 $2 Qf6 $17)) 14... fxg6 $11 {[%emt 0:03:46]} 15. Ng5 {[%emt 0:07:31] [#]} (15. cxb5 axb5 16. hxg6 h6 $17) (15. O-O-O $11) 15... bxc4 {[%emt 0:12:38]} (15... gxh5 16. Bxh7+ Nxh7 17. Qxh7+ Kf8 18. Qh8+ Ke7 19. Qxg7#) (15... h6 $1 $17 {[%cal Rh6g5]} 16. Nf7 Kxf7 17. Bxg6+ Ke7 18. Bxe8 Kxe8 19. Rxg7 bxc4 20. bxc4 Qh4) 16. bxc4 $15 {[%emt 0:00:54][%cal Rh5g6]} h6 $1 {[%emt 0:04:01]} (16... gxh5 {gets mated.} 17. Bxh7+ Nxh7 18. Qxh7+ Kf8 19. Qh8+ Ke7 20. Qxg7#) 17. Nf7 {[%emt 0:01:45][%mdl 64] Decoy} Kxf7 {[%emt 0:00:08][%cal Bg8f7,Bf7e7,Be7d8,Bd8e8][%mdl 32]} 18. Bxg6+ {[%emt 0:00:04]} Ke7 {[%emt 0:03:07]} ({But not} 18... Kg8 19. Bxe8 Ne5 {[#]} 20. O-O-O $1 $16) 19. Bxe8 {[%emt 0:09:53]} Qxe8 {[%emt 0:00:35]} 20. Rxg7+ {[%emt 0:03:42]} Kd8 {[%emt 0:00:04]} 21. Qa4 {[%emt 0:05:57] Black keeps a firm grip on the game.} (21. Rb1 $15) 21... Qxh5 {[%emt 0:02:55][%cal Od7e5] aiming for ...Ne5! Chess con chili.} 22. cxd5 {[%emt 0:02:00]} exd5 {[%emt 0:06:33]} 23. Qa5+ $2 {[%emt 0:04:04]} (23. Ba3 $17 c5 24. Qg4 Qh1+ 25. Qg1 Qxg1+ 26. Rxg1) 23... Ke8 $19 {[%emt 0:00:48]} 24. Ba3 $2 {[%emt 0:01:45]} (24. d4) 24... c5 {[%emt 0:02:47]} ({Don't blunder} 24... Bxa3 $2 25. Qxa3 c5 26. Qb3 $19) 25. Rb1 {[%emt 0:00:17]} d4 {[%emt 0:03:54]} 26. exd4 {[%emt 0:04:30]} (26. Rxb7 $142 Qh1+ 27. Ke2 Qxb7 28. exd4) 26... Qh1+ {[%emt 0:05:48]} 27. Ke2 {[%emt 0:00:09]} Bf3+ {[%emt 0:00:05] This bishop pair is nice.} 28. Kd3 {[%emt 0:00:46] [#]} Be4+ $1 {[%emt 0:00:06][%mdl 512]} 29. Nxe4 {[%emt 0:04:54]} (29. Kc4 Bxb1) 29... Qxb1+ {[%emt 0:00:06]} 30. Ke3 {[%emt 0:00:22]} cxd4+ {[%emt 0:01:26]} 31. Kxd4 {[%emt 0:00:15]} Ne6+ {[%emt 0:01:11] Black mates.} 32. Ke3 {[%emt 0:03:27]} Bf4+ {[%emt 0:01:14]} 33. Kf3 {[%emt 0:00:09]} Ne5+ {[%emt 0:00:13]} 34. Ke2 {[%emt 0:05:50]} Qxe4+ {[%emt 0:00:08]} 35. Kd1 {[%emt 0:00:01]} Nxg7 {[%emt 0:00:32]} 36. Qc5 {[%emt 0:00:30]} Qf3+ {[%emt 0:00:15]} 37. Kc2 {[%emt 0:00:13]} Qc6 {[%emt 0:00:06] Weighted Error Value: White=1.04/Black=0.14 (very precise)} (37... Qd3+ $142 38. Kc1 Bxd2+ 39. Kb2 Rb8+ 40. Bb4 Rxb4+ 41. Qxb4 Bxb4 42. a3 Nc4+ 43. Ka2 Qxa3+ 44. Kb1 Qb2#) 0-1

[Event "USA Championship Women 2022"]
[Site "Saint Louis"]
[Date "2022.10.05"]
[Round "1.6"]
[White "Tokhirjonova, Gulrukhbegim"]
[Black "Morris-Suzuki, Sophie"]
[Result "1-0"]
[ECO "B52"]
[WhiteElo "2336"]
[BlackElo "2126"]
[Annotator "TA"]
[PlyCount "73"]
[EventDate "2022.09.05"]
[EventType "tourn"]
[EventCountry "USA"]
[SourceTitle "playchess.com"]
[Source "ChessBase"]
[SourceQuality "1"]
[TimeControl "40/5400+30:1800+30"]

{[%evp 11,72,8,18,13,16,11,14,7,7,0,0,0,1,0,0,0,18,0,8,0,7,0,27,39,35,37,45,27,84,83,70,74,62,58,67,58,81,29,37,7,203,199,324,317,1117,1081,1463,1463,1342,218,1153,853,29987,29981,29981,29982,29981,29982,29982,29981,29998,29999,29999]} 1. e4 {[%emt 0:01:33]} c5 {[%emt 0:00:11]} 2. Nf3 {[%emt 0:00:32]} d6 {[%emt 0:00:11]} 3. Bb5+ {[%emt 0:03:04]} Bd7 {[%emt 0:00:44]} 4. a4 {[%emt 0:01:02]} Nc6 {[%emt 0:04:48]} 5. O-O {[%emt 0:01:03]} Nf6 {[%emt 0:04:03]} 6. Re1 {[%emt 0:04:49]} a6 {[%emt 0:02:19]} 7. Bf1 {[%emt 0:11:11] B52: Sicilian: Moscow Variation with 3...Bd7.} Bg4 {[%emt 0:01:41][%cal Bd7g4,Bg4h5,Bh5g6][%mdl 32]} 8. h3 {[%emt 0:00:47]} Bh5 {[%emt 0:05:11]} 9. g4 {[%emt 0:03:07] The position is equal.} Bg6 {[%emt 0:01:41]} 10. Nc3 {[%emt 0:03:24] [#]} e6 $146 {[%emt 0:05:16]} ({Predecessor:} 10... e5 11. d3 Be7 12. Bg2 Nd4 13. Nd2 h5 14. Nc4 hxg4 15. hxg4 Ne6 16. Nd5 Kf8 {0-1 (31) Suleymanli,A (2537)-Mamedov,R (2656) Chess.com INT 2022}) 11. Bg2 {[%emt 0:03:33]} Be7 {[%emt 0:06:49]} 12. d4 {[%emt 0:03:27]} cxd4 {[%emt 0:17:17]} 13. Nxd4 {[%emt 0:00:56]} Nxd4 {[%emt 0:03:16]} 14. Qxd4 {[%emt 0:00:10]} O-O {[%emt 0:03:17]} 15. Be3 {[%emt 0:10:40]} Nd7 {[%emt 0:02:11]} 16. Qd2 {[%emt 0:01:17]} Nb6 {[%emt 0:16:43]} 17. b3 {[%emt 0:03:01] Against Nc4} Rc8 {[%emt 0:01:22]} 18. a5 {[%emt 0:04:02]} Nd7 {[%emt 0:05:18]} 19. Na4 {[%emt 0:13:30]} d5 {[%emt 0:09:47] [#]} (19... h5 $11 {remains equal.}) 20. Rad1 $1 $16 {[%emt 0:03:10]} Rc7 {[%emt 0:02:25] Against c4} 21. Nb6 {[%emt 0:16:19] aiming for f4.} Nf6 {[%emt 0:00:01]} 22. exd5 {[%emt 0:03:48] White is more active.} Rxc2 {[%emt 0:00:23]} 23. Qd4 {[%emt 0:00:20] Hoping for d6.} Nxd5 {[%emt 0:02:58]} 24. Bxd5 {[%emt 0:04:49]} ({Better is} 24. Nxd5 $16 exd5 25. Qxd5) 24... exd5 $11 {[%emt 0:01:36]} 25. Nxd5 {[%emt 0:00:07]} Bf6 {[%emt 0:02:53] [#] A mistake that costs the game.} (25... Bh4 $11) 26. Qf4 $1 $18 {[%emt 0:01:04]} Bh4 {[%emt 0:00:36]} (26... Qb8 $142) 27. g5 {[%emt 0:01:33]} Qxa5 $2 {[%emt 0:00:22]} (27... Bxg5 28. Qxg5 Qxg5+ 29. Bxg5 h6) 28. Qxh4 {[%emt 0:00:46] Ne7+ is the strong threat.} Re8 {[%emt 0:00:12] [#] Inhibits Ne7+.} 29. Bd2 $1 {[%emt 0:00:56][%cal Re1e8][%mdl 512]} Qb5 {[%emt 0:00:43]} 30. Rxe8+ Qxe8 {[%emt 0:00:01]} 31. Re1 {[%emt 0:00:48][%cal Re1e8]} Qd7 {[%emt 0:01:11]} 32. Ne7+ {[%emt 0:00:52] White mates.} Kh8 {[%emt 0:00:04]} 33. Nxg6+ {[%emt 0:00:10]} fxg6 {[%emt 0:00:01] [#]} 34. Qd4 $3 {[%emt 0:00:33][%mdl 512]} Qc8 {[%emt 0:00:39] [#]} 35. Bc3 $1 {[%emt 0:00:22][%csl Gc3][%cal Rd4g7][%mdl 512]} Qf8 {[%emt 0:00:41] [#]} (35... Rxc3 36. Qxc3) 36. Qxg7+ $1 {[%emt 0:00:28][%mdl 512]} Qxg7 {[%emt 0:00:06]} 37. Re8# {[%emt 0:00:05] Weighted Error Value: White=0.05 (flawless) /Black=0.49} 1-0

[Event "USA Championship Women 2022"]
[Site "Saint Louis"]
[Date "2022.10.05"]
[Round "1.7"]
[White "Cervantes Landeiro, Thalia"]
[Black "Yan, Ruiyang"]
[Result "1/2-1/2"]
[ECO "D37"]
[WhiteElo "2272"]
[BlackElo "2220"]
[Annotator "TA"]
[PlyCount "94"]
[EventDate "2022.09.05"]
[EventType "tourn"]
[EventCountry "USA"]
[SourceTitle "playchess.com"]
[Source "ChessBase"]
[SourceQuality "1"]
[TimeControl "40/5400+30:1800+30"]

{[%evp 9,94,24,26,23,28,27,29,31,36,20,25,22,22,28,31,15,17,24,33,20,29,13,35,39,44,46,43,12,0,0,0,0,11,7,13,7,1,8,19,10,43,37,32,0,0,0,0,0,0,0,0,0,0,0,0,0,0,0,0,0,0,-76,0,0,0,0,0,0,0,0,0,0,0,0,0,0,0,0,0,0,0,0,0,0,0,0,0]} 1. d4 {[%emt 0:00:04]} Nf6 {[%emt 0:00:11]} 2. c4 {[%emt 0:00:07]} e6 {[%emt 0:00:05]} 3. Nf3 {[%emt 0:00:06]} a6 {[%emt 0:00:04]} 4. Nc3 {[%emt 0:04:07]} d5 {[%emt 0:00:07]} 5. cxd5 {[%emt 0:02:22]} exd5 {[%emt 0:00:06]} 6. Bg5 {[%emt 0:00:40] D37: Queen's Gambit Declined: 5 Bf4.} Be6 {[%emt 0:00:07]} 7. e3 {[%emt 0:01:41]} Nbd7 {[%emt 0:00:19]} 8. Bd3 {[%emt 0:01:48] White has an edge.} Bd6 {[%emt 0:00:40]} 9. Qc2 {[%emt 0:01:42]} c6 {[%emt 0:04:39]} 10. Bf4 {[%emt 0:11:24]} Qc7 {[%emt 0:03:34]} 11. Bxd6 {[%emt 0:00:28]} Qxd6 {[%emt 0:00:06]} 12. h3 {[%emt 0:00:41]} O-O {[%emt 0:05:31]} 13. O-O {[%emt 0:05:15]} Rfe8 {[%emt 0:10:31]} 14. Rac1 {[%emt 0:11:14]} a5 {[%emt 0:06:15] [#]} 15. Na4 $146 {[%emt 0:02:48]} ({Predecessor:} 15. b3 h6 16. Rfd1 Rac8 17. Qb2 Qe7 18. Ne5 g6 19. Nf3 Nh5 20. Re1 {½-½ (31) Elyoseph,H (2428)-Schmidt,T (2425) ICCF email 2018}) 15... Ne4 {[%emt 0:13:13]} 16. Nc5 {[%emt 0:03:03]} Ndxc5 {[%emt 0:10:56]} 17. dxc5 {[%emt 0:00:11]} Qc7 {[%emt 0:03:33]} 18. Nd4 {[%emt 0:04:43] Prevents Bf5.} Bd7 {[%emt 0:04:59]} 19. b3 {[%emt 0:08:09]} h6 {[%emt 0:05:14]} 20. a3 {[%emt 0:05:34]} f5 {[%emt 0:08:35]} 21. Ne2 {[%emt 0:04:04]} Qe5 {[%emt 0:03:14]} 22. Rb1 {[%emt 0:03:15]} Qe7 {[%emt 0:06:24]} 23. b4 {[%emt 0:06:46]} axb4 {[%emt 0:00:14]} 24. axb4 {[%emt 0:00:03]} Ra3 {[%emt 0:06:36]} 25. Bxe4 {[%emt 0:03:42]} Qxe4 {[%emt 0:01:21]} 26. Qxe4 {[%emt 0:05:45]} Rxe4 {[%emt 0:00:14]} 27. Nd4 {[%emt 0:00:31]} Ra4 {[%emt 0:03:32]} 28. b5 {[%emt 0:06:12]} f4 {[%emt 0:00:48]} 29. bxc6 {[%emt 0:01:07]} Bxc6 {[%emt 0:00:20]} (29... bxc6 {feels hotter.} 30. Ne2 fxe3 31. Nc3 exf2+ 32. Kh2 Rab4) 30. Rb6 {[%emt 0:04:35]} fxe3 {[%emt 0:00:50]} 31. fxe3 {[%emt 0:00:02]} Rxe3 {[%emt 0:00:10]} 32. Nxc6 {[%emt 0:00:14]} bxc6 {[%emt 0:00:04]} 33. Rxc6 $11 {[%emt 0:00:11][%mdl 4096] Endgame KRR-KRR} Ra2 {[%emt 0:01:38]} 34. Rf4 {[%emt 0:02:21]} Rg3 {[%emt 0:01:20]} 35. Rc8+ {[%emt 0:00:21]} Kh7 {[%emt 0:00:04]} 36. Rf2 {[%emt 0:00:12] The position is equal.} Rxf2 {[%emt 0:00:20]} 37. Kxf2 {[%emt 0:00:06] KR-KR} Rc3 {[%emt 0:00:03]} 38. c6 {[%emt 0:00:39]} h5 {[%emt 0:00:10]} 39. c7 {[%emt 0:01:06]} d4 {[%emt 0:00:06]} 40. Rd8 {[%emt 0:00:52]} Rxc7 {[%emt 0:00:03]} 41. Rxd4 {[%emt 0:30:06]} Rc5 {[%emt 0:30:03]} 42. Kf3 {[%emt 0:00:18]} Kg6 {[%emt 0:00:07]} 43. Kf4 {[%emt 0:01:05]} Rf5+ {[%emt 0:00:04]} 44. Kg3 {[%emt 0:00:18]} Rg5+ {[%emt 0:00:03]} 45. Kf3 {[%emt 0:00:09]} Rf5+ {[%emt 0:00:04]} 46. Kg3 {[%emt 0:00:06]} Rg5+ {[%emt 0:00:02]} 47. Kf3 {[%emt 0:00:07]} Rf5+ {[%emt 0:00:03] Weighted Error Value: White=0.06 (flawless) /Black=0.03 (flawless)} 1/2-1/2

[Event "USA Championship Women 2022"]
[Site "Saint Louis"]
[Date "2022.10.06"]
[Round "2.1"]
[White "Paikidze, Nazi"]
[Black "Lee, Megan"]
[Result "0-1"]
[ECO "C45"]
[WhiteElo "2354"]
[BlackElo "2226"]
[Annotator "TA"]
[PlyCount "56"]
[EventDate "2022.09.05"]
[EventType "tourn"]
[EventCountry "USA"]
[SourceTitle "playchess.com"]
[Source "ChessBase"]
[SourceQuality "1"]
[TimeControl "40/5400+30:1800+30"]

{[%evp 14,56,-16,-24,-11,-20,0,16,19,12,19,19,18,19,27,35,35,21,21,0,56,70,50,-64,-61,-106,-115,-167,-175,-381,-391,-375,-362,-469,-320,-534,-525,-949,-967,-996,-957,-1194,-1188,-29988,-1095]} 1. e4 {[%emt 0:00:04]} e5 {[%emt 0:00:04]} 2. Nf3 {[%emt 0:00:06]} Nc6 {[%emt 0:00:04]} 3. d4 {[%emt 0:00:06]} exd4 {[%emt 0:00:08]} 4. Nxd4 {[%emt 0:00:05]} Nf6 {[%emt 0:00:32][%cal Bg8f6,Bf6d5,Bd5b4][%mdl 32]} 5. Nxc6 {[%emt 0:00:10]} bxc6 {[%emt 0:00:06]} 6. e5 {[%emt 0:00:05]} Qe7 {[%emt 0:00:40]} 7. Qe2 {[%emt 0:00:07]} Nd5 {[%emt 0:00:20]} 8. h4 {[%emt 0:00:06]} Qe6 {[%emt 0:06:11] C45: Scotch Game.} 9. Nd2 {[%emt 0:00:17] 9.Nd2 is better than 9.g3.} Nb4 {[%emt 0:06:06]} 10. Nf3 {[%emt 0:00:56]} Ba6 {[%emt 0:04:32] The position is equal.} 11. c4 $1 {[%emt 0:03:30] next Nd4 is good for White.} c5 {[%emt 0:16:09] Inhibits Nd4.} 12. a3 {[%emt 0:26:17]} Nc6 {[%emt 0:02:35]} 13. Bd2 {[%emt 0:01:15] [#]} h6 $146 {[%emt 0:24:49]} ({Predecessor:} 13... Be7 14. Bc3 Rb8 15. Rh3 O-O 16. O-O-O f6 17. Rg3 fxe5 18. Nxe5 Nd4 19. Bxd4 cxd4 20. Rxd4 {½-½ (44) Vasquez,F (2029)-Sanner,Z (2120) FICGS email 2008}) 14. Bc3 {[%emt 0:03:29]} O-O-O {[%emt 0:06:33]} 15. g3 {[%emt 0:06:08]} Be7 {[%emt 0:01:07]} 16. Nd2 {[%emt 0:11:32]} Rhe8 {[%emt 0:04:37]} (16... Nd4 $11 17. Bxd4 cxd4) 17. Bh3 $14 {[%emt 0:07:31]} f5 {[%emt 0:02:59]} 18. Bg2 {[%emt 0:00:40] [#]} ({Better is} 18. O-O-O $1 $14) 18... Nxe5 $1 $15 {[%emt 0:02:49] ...Nd3+ is the strong threat.} 19. Bxe5 {[%emt 0:14:55] Black must now prevent 0-0-0.} ({Much weaker is} 19. Qxe5 Qxe5+ 20. Bxe5 Bf6 $17) (19. O-O Nxc4) 19... Bf6 $1 {[%emt 0:01:01]} 20. f4 {[%emt 0:01:41] [#]} (20. O-O $17 Qxe5 21. Qf3 (21. Qxe5 Bxe5 22. Rab1 f4 $17)) 20... d6 $1 $19 {[%emt 0:01:55][%cal Bd7d6,Bd6e5,Be5e4][%mdl 32]} 21. O-O $2 {[%emt 0:13:54]} (21. Bc6 {was necessary.}) 21... dxe5 {[%emt 0:00:43]} 22. Rfe1 {[%emt 0:03:01]} e4 {[%emt 0:00:59]} 23. Rab1 {[%emt 0:01:35]} Qd7 {[%emt 0:03:54]} 24. Nb3 {[%emt 0:00:54]} (24. Nf1 {is a better defense.}) 24... Qd3 {[%emt 0:00:23]} 25. Na5 {[%emt 0:00:46]} Qxg3 {[%emt 0:00:27] Threatens to win with ...Bd4+.} 26. Nc6 {[%emt 0:01:26]} Rd6 {[%emt 0:01:22]} 27. Ne5 {[%emt 0:00:31]} Qxf4 {[%emt 0:00:21]} 28. Nf3 {[%emt 0:00:47] [#]} Red8 {[%emt 0:00:21] Weighted Error Value: White=0.99/Black=0.17 (very precise)} (28... exf3 $142 $1 29. Qxe8+ Rd8 30. Re4 Bd4+ 31. Kh1 Qg3 32. Qxd8+ Kxd8 33. Rxd4+ cxd4 34. Bxf3 Qxf3+ 35. Kh2 Qf2+ 36. Kh3 Bc8 37. Rg1 f4+ 38. Rg4 Qg3#) 0-1

[Event "USA Championship Women 2022"]
[Site "Saint Louis"]
[Date "2022.10.06"]
[Round "2.2"]
[White "Morris-Suzuki, Sophie"]
[Black "Cervantes Landeiro, Thalia"]
[Result "1/2-1/2"]
[ECO "B56"]
[WhiteElo "2126"]
[BlackElo "2272"]
[Annotator "TA"]
[PlyCount "67"]
[EventDate "2022.09.05"]
[EventType "tourn"]
[EventCountry "USA"]
[SourceTitle "playchess.com"]
[Source "ChessBase"]
[SourceQuality "1"]
[TimeControl "40/5400+30:1800+30"]

{[%evp 11,67,38,34,26,24,33,39,23,38,39,22,45,34,50,42,30,41,39,60,24,30,2,28,34,31,21,44,0,0,0,0,0,0,0,0,0,0,0,8,0,0,0,0,0,5,0,0,0,0,0,38,37,40,0,0,0,46,0]} 1. e4 {[%emt 0:00:02]} c5 {[%emt 0:00:09]} 2. Nf3 {[%emt 0:00:12]} d6 {[%emt 0:00:07]} 3. d4 {[%emt 0:00:09]} cxd4 {[%emt 0:00:07]} 4. Nxd4 {[%emt 0:00:08]} Nf6 {[%emt 0:00:06]} 5. Nc3 {[%emt 0:00:13]} Bd7 {[%emt 0:00:07]} 6. Bg5 {[%emt 0:01:43]} e6 {[%emt 0:00:12]} 7. Ndb5 {[%emt 0:08:07] B56: Classical Sicilian: Unusual Lines.} Bxb5 {[%emt 0:00:17]} 8. Bxb5+ {[%emt 0:00:08]} Nc6 {[%emt 0:00:10]} 9. Qf3 {[%emt 0:01:13][%cal Oe4e5] [#] aiming for e5!} Be7 {[%emt 0:00:36]} 10. e5 {[%emt 0:01:05]} dxe5 $1 {[%emt 0:00:17][%mdl 4] now scores much better than the old 10...Nd5.} 11. Bxc6+ {[%emt 0:00:14]} ({Much worse is} 11. Rd1 Qc7 $15) 11... bxc6 {[%emt 0:00:11]} 12. Qxc6+ {[%emt 0:00:10]} Kf8 $1 {[%emt 0:00:18]} 13. O-O {[%emt 0:04:16]} Qc8 {[%emt 0:00:18]} 14. Qf3 {[%emt 0:00:55]} Rb8 {[%emt 0:00:54]} 15. Rab1 {[%emt 0:04:57]} h6 {[%emt 0:03:41]} 16. Bh4 {[%emt 0:00:41] [#]} Rb4 $146 {[%emt 0:11:23]} (16... g5 $5 17. Bg3 $8 Nd7 $11) ({Predecessor:} 16... g5 17. Bg3 Nd7 18. Rfd1 f6 19. Ne4 Kg7 20. c4 Nc5 21. Nd6 Bxd6 22. Rxd6 Qb7 {1-0 (53) Zlebcik,L (2488)-Gildred,T (2400) ICCF email 2009}) 17. Bg3 {[%emt 0:01:17]} e4 {[%emt 0:06:27]} 18. Qe2 {[%emt 0:00:50]} Qc6 {[%emt 0:11:16]} 19. Rfd1 {[%emt 0:10:59]} Kg8 {[%emt 0:05:06]} 20. Be5 {[%emt 0:13:26]} Kh7 {[%emt 0:06:30]} 21. Rd4 {[%emt 0:09:24]} Nd7 {[%emt 0:20:18]} 22. a3 {[%emt 0:03:21] [#] And now Rxd7 would win.} Rxd4 {[%emt 0:11:23]} 23. Bxd4 {[%emt 0:00:02]} Bf6 {[%emt 0:01:06]} 24. Qe3 {[%emt 0:05:22]} a6 {[%emt 0:02:34]} 25. Bxf6 {[%emt 0:15:54]} Nxf6 {[%emt 0:00:09]} 26. Qd4 {[%emt 0:00:53]} Rb8 {[%emt 0:02:31]} 27. h3 {[%emt 0:00:34]} Rb7 {[%emt 0:04:16][%cal Bb8b7,Bb7c7,Bc7c6,Bc6b6][%mdl 32]} 28. Qa4 {[%emt 0:04:49]} Rc7 {[%emt 0:01:24]} 29. Qxc6 {[%emt 0:03:19]} Rxc6 {[%emt 0:00:02]} 30. Rd1 {[%emt 0:05:01]} Rb6 {[%emt 0:03:13]} 31. Na4 {[%emt 0:00:57]} Rc6 {[%emt 0:00:09]} 32. Nc3 {[%emt 0:01:27]} Rb6 {[%emt 0:04:55]} 33. Na4 {[%emt 0:00:42]} Rc6 {[%emt 0:00:10]} 34. Nc3 {[%emt 0:00:24] Weighted Error Value: White=0.08 (flawless) /Black=0.05 (flawless)} (34. Rc1 $14) 1/2-1/2